Workbook

Sheet Sheet1
A4: INSTRUCTIONS: Use this form when a single information collection document involves multiple reporting and recordkeeping requirements. The totals of the figures in cols. should be entered in item 13 of OMB-83-I: cols. (D) &/or (I) = 13a (respondent is only counted once); cols. F & I = 13b; cols. H & K = 13c. (F)Total/(D)Total = (E)Average (H)Total/(F)Total = (G)Average (K)Total/(I)Total = (J)Average NOTE: The columns will calculate automatically. If Col. E's response is something other than annually, i.e., 1/6 years, list as "1/6" & decimal will display. | I4: TITLE OF INFORMATION COLLECTION DOCUMENT | N4: OMB NO.
I6: Federal and Non-Federal Financial Assistance Instruments | N6: 0596-0217
N9: DATE PREPARED
A13: IDENTIFICATION OF REPORTING OR RECORDKEEPING REQUIREMENT | H13: ANNUAL BURDEN
H15: REPORTS | M15: RECORDS | P15: RESPONDENT COST
O17: TOTAL
G18: FORMS NO (S) | H18: NO. OF | I18: NO OF | J18: TOTAL ANNUAL | K18: HOURS | L18: TOTAL | M18: NO. OF | N18: ANNUAL | O18: RECORD- | P18: COST | Q18: TOTAL
A19: SECTION OF | B19: DESCRIPTION | G19: (If "none" | H19: RESPONDENTS | I19: RESPONSES | J19: RESPONSES | K19: PER | L19: HOURS | M19: RECORD- | N19: HOURS PER | O19: KEEPING HOURS | P19: PER | Q19: COST
A20: REGS. | G20: so state) | I20: PER | J20: (Col. D x E) | K20: RESPONSE | L20: (Col. F x G) | M20: KEEPERS | N20: RECORD- | O20: (Col. I x J) | P20: HOUR | Q20: (Col. H x L)
I21: RESPONDENT | N21: KEEPER
A22: (A) | B22: (B) | G22: (C) | H22: (D) | I22: (E) | J22: (F) | K22: (G) | L22: (H) | M22: (I) | N22: (J) | O22: (K) | P22: (L) | Q22: (M)
B23: Modification Form | G23: FS-1500-19 | H23: 7893 | I23: 1 | J23: =H23*I23 -> 7893 | K23: 0.3 | L23: =J23*K23 -> 2367.9 | O23: =SUM(M23*N23) -> 0 | P23: 0 | Q23: =SUM(L23*P23) -> 0
B24: Cooperator Performance Report (Optional Template) | G24: FS-1500-23 | H24: 4293 | I24: 2 | J24: =H24*I24 -> 8586 | K24: 2 | L24: =J24*K24 -> 17172 | O24: 0 | P24: 0 | Q24: =SUM(L24*P24) -> 0
A25: NEW | B25: Grant or Agreement Award Face Sheet | G25: FS-1500-100 | H25: =(H76+H91+H107+H113) -> 1016 | I25: 1 | J25: =H25*I25 -> 1016 | K25: 3 | L25: =J25*K25 -> 3048 | M25: =L25*0.41 -> 1249.68
B26: By using a single form FS-1500-100 the agency hopes to eliminate duplicate collection when G&A Specialists must change forms when the wrong instrument type is completed by a partner/FS Program Manager. The Agency has sucessfully tested the new 1500-100 form and the goal in the upcoming years will to use the FS-1500-100 as the single form for all our Grants and Agreements.
F27: Total | H27: =SUM(H23:H25) -> 13202 | J27: =SUM(J23:J25) -> 17495 | L27: =SUM(L23:L25) -> 22587.9 | O27: 0 | Q27: 0
B28: FEDERAL FINANCIAL ASSISTANCE TEMPLATES | O28: 0 | Q28: 0
B29: Cooperative Agreement | G29: Award Letter | H29: 175 | J29: =H29*I29 -> 0 | L29: =J29*K29 -> 0 | M29: =40.53*1016 -> 41178.48 | O29: 0 | Q29: 0
B30: Domestic Grant | G30: Award Letter | H30: 761 | J30: 0 | L30: 0 | O30: 0 | Q30: 0
B31: International Cooperative Agreement | G31: Award Letter | H31: 12 | J31: 0 | L31: 0 | O31: =SUM(O23:O30) -> 0 | Q31: =SUM(Q23:Q30) -> 0
B32: International Grant | G32: Award Letter | H32: 16 | J32: 0 | L32: 0 | O32: =SUM(O23:O30) -> 0 | Q32: =SUM(Q23:Q30) -> 0
E33: SUB TOTAL: | H33: =SUM(H29:H32) -> 964 | J33: =SUM(J29:J32) -> 0 | L33: 0
B34: NEW FORMS AND COLLECTIONS
A35: NEW | B35: Certification Regarding Lobbying (Required for all awards over $100K) | C35: Certification Regarding Lobbying | G35: FS-1500-35 | H35: =H33*0.33 -> 318.12 | I35: 1 | J35: =H35*I35 -> 318.12 | K35: 0.15 | L35: =J35*K35 -> 47.718
A36: NEW | B36: Financial Capability Questionnaire | G36: FS-1500-22 | H36: 200 | I36: 1 | J36: 200 | K36: 1 | L36: =J36*K36 -> 200
A37: NEW | B37: Financial Capability Checklist | G37: FS-1500-22A | H37: 550 | I37: 1 | J37: 550 | K37: 0.5 | L37: =J37*K37 -> 275
A38: NEW | B38: Financial Capability Checklist (States ONLY) | G38: FS-1500-22B | H38: 50 | I38: 1 | J38: 50 | K38: 0.5 | L38: =J38*K38 -> 25
A39: NEW | B39: Equipment Justification and Certification Statement | G39: FS-1500-34 | H39: 25 | I39: 1 | J39: 25 | K39: 0.42 | L39: =J39*K39 -> 10.5 | M39: =SUM(L35:L39) -> 558.218
B41: STANDARD FORM: Common
A42: 4040-0002 | B42: Application for Federal Assistance (Mandatory) | G42: SF-424 | H42: 820 | I42: 1 | J42: =H42*I42 -> 820 | K42: 1 | L42: =J42*K42 -> 820
A43: 4040-0005 | B43: Application for Federal Assistance (Individual) | G43: SF-424 | H43: 10 | I43: 1 | J43: =H43*I43 -> 10 | K43: 3 | L43: =J43*K43 -> 30
A44: 4040-0001 | B44: Application for Federal Assistance – Research | G44: SF-424 RR | H44: =H33-H43-H42 -> 134 | I44: 1 | J44: =H44*I44 -> 134 | K44: 58 | L44: =J44*K44 -> 7772
F45: TOTAL | H45: =SUM(H42:H44) -> 964 | J45: =SUM(J42:J44) -> 964 | L45: =SUM(L42:L44) -> 8622
B46: STANDARD FORM: Burden accounted for under another information collection number
A47: 4040-0013 | B47: Disclosure of Lobbying Activities | G47: SF-LLL & SF-LLLa | H47: 150 | I47: 1 | J47: =H47*I47 -> 150 | K47: =10/60 -> 0.1666666667 | L47: =J47*K47 -> 25
A48: 4040-0012 | B48: Request for Advance or Reimbursement | G48: SF-270 | H48: =(H33-25) -> 939 | I48: 2.5 | J48: =H48*I48 -> 2347.5 | K48: 1 | L48: 2347.5 | M48: is 4040-0012. Grants.gov is carrying the burden for using this form.
A49: 4040-0011 | B49: Outlay Report and Request for Reimbursement for Construction Programs | G49: SF-271 | H49: 25 | I49: 2.5 | J49: =H49*I49 -> 62.5 | K49: 1 | L49: 62.5
A50: 4040-0006 | B50: Budget Information – Non-Construction Programs | G50: SF-424A | H50: =H33-H52 -> 939 | I50: 1 | J50: =H50*I50 -> 939 | K50: =180/60 -> 3 | L50: 2817
A51: 4040-0007 | B51: Assurances – Non-Construction Programs | G51: SF-424B | H51: =H50 -> 939 | I51: 1 | J51: 939 | K51: =15/60 -> 0.25 | L51: 234.75 | M51: SF-424B is approved under 4040-0007 – Grants.gov carries the burden
A52: 4040-0008 | B52: Budget Information - Construction Programs | G52: SF-424C | H52: 25 | I52: 1 | J52: 25 | K52: =180/60 -> 3 | L52: 75
A53: 4040-0009 | B53: Assurances – Construction Program | G53: SF-424D | H53: =H52 -> 25 | I53: 1 | J53: 25 | K53: =15/60 -> 0.25 | L53: 6.25
A54: 4040-0014 | B54: Federal Financial Report | G54: SF-425 | H54: 2750 | I54: 2 | J54: =H54*I54 -> 5500 | K54: 1.5 | L54: 8250 | M54: SF-425 and 425A – approved under 4040-0014 – Grants. Gov carries the burden.
A55: 3090-0289 | B55: Tangible Personal Property | G55: SF-428
B56: Annual Report | G56: SF-428-A
B57: Final Report Form and Instructions | G57: SF-428-B
B58: Disposition Request/Report | G58: SF-428-C
B59: Supplemental Form and Instructions | G59: SF-428-S
A60: 3090-0296 | B60: Real Property Status Repot
A61: 9000-0045 | B61: Payment Bond | G61: SF-25A | H61: 5 | I61: 1 | J61: =H61*I61 -> 5 | K61: =25/60 -> 0.4166666667 | L61: =J61*K61 -> 2.083333333
E62: TOTAL: | H62: =SUM(H35:H61)+H33 -> 9832.12 | I62: =SUM(I35:I61)+I33 -> 21 | J62: =SUM(J35:J61)+J33 -> 13064.12 | K62: =SUM(K35:K61)+K33 -> 75.15333333 | L62: =SUM(L47:L61) -> 13820.08333 | M62: *
B63: NONFEDERAL FINANCIAL ASSISTANCE TEMPLATES
B64: COOPERATIVE FIRE AGREEMENTS | G64: FS-1500-7
E65: SUB TOTAL: | H65: 225 | I65: 1 | J65: =H65*I65 -> 225 | K65: 3 | L65: =J65*K65 -> 675
B66: LAW ENFORCEMENT AGREEMENTS | G66: FS-1500-8
B67: Cooperative Law Enforcement Annual Operating Plan and Financial Plan | G67: FS-1500-8A
E68: SUB TOTAL: | H68: 174 | I68: 1 | J68: =H68*I68 -> 174 | K68: 3 | L68: =J68*K68 -> 522
B69: ROADS AGREEMENTS
B70: Cooperative Forest Road Agreement | G70: FS-1500-9
B71: Road Project Agreement | G71: FS-1500-9A
E72: SUB TOTAL: | H72: 205 | I72: 1 | J72: 205 | K72: 4 | L72: =J72*K72 -> 820
B73: CHALLENGE COST SHARE AGREEMENTS
B74: Challenge Cost-Share Agreement
B75: Replaces FS-1500-10 through 10C | G75: Replaced
E76: SUB TOTAL: | H76: =714*0.5 -> 357 | I76: 1 | J76: 357 | K76: 4 | L76: =J76*K76 -> 1428
B77: COLLECTION AGREEMENTS
B78: Collection Agreement | G78: FS-1500-11
B79: Reimbursable Collection Agreement, Rocky Mountain Elk Foundation | G79: FS-1500-11A
B80: Advance Collection Agreement, Rocky Mountain Elk Foundation | G80: FS-1500-11B
B81: Collection Agreement- FERC | G81: FS-1500-11C
C82: Collection Agreement Financial Plan (Optional) | G82: FS-1500-18
E83: SUB TOTAL: | H83: 975 | I83: 1 | J83: 975 | K83: 4 | L83: =J83*K83 -> 3900
B84: RESEARCH AND DEVELOPMENT (R&D) AGREEMENTS
B85: Cost-Reimbursable Agreement | G85: Replaced
B86: Cooperative Research and Development Agreements
B87: Replaces FS-1500-13 through 13B | G87: Replaced
B88: Nondisclosure Agreement
B89: Joint Venture Agreement
B90: Replaces FS-1500-14 through 14A | G90: Replaced
E91: SUB TOTAL: | H91: =316*0.5 -> 158 | I91: 1 | J91: 158 | K91: 4 | L91: =J91*K91 -> 632
B92: MEMORANDUM OF UNDERSTANDING
B93: Memorandum of Understanding | G93: FS-1500-15
B94: Memorandum of Understanding for Cooperative Frequency Usage | G94: FS-1500-15A
E95: SUB TOTAL: | H95: 299 | I95: 1 | J95: 299 | K95: 3 | L95: =J95*K95 -> 897
B96: PARTICIPATING AGREEMENTS
B97: Replaces FS-1500-16 through 1500-16G | G97: Replaced
C98: Master Stewardship Agreement | G98: FS 1500-21
B99: Stewardship Agreement Supplemental Project Agreement | G99: FS-1500-21A
B100: Stewardship Agreement Financial Plan | G100: FS-1500-21B
B101: Stewardship Agreement | G101: FS-1500-21C
B102: Stewardship Agreement (Short Form) | G102: FS-1500-21D
C103: Agreements Financial Plan (Long) Optional | G103: FS-1500-17A
C104: Agreements Financial Plan (Short) Optional | G104: FS-1500-17B
C105: Agreements Financial Plan (Medium Form) Optional | G105: FS-1500-17C
C106: Collection Agreement Financial Plan Optional | G106: FS-1500-18
E107: SUB TOTAL: | H107: =962*0.5 -> 481 | I107: 1 | J107: =H107*I107 -> 481 | K107: 4 | L107: =J107*K107 -> 1924
A108: GOOD NEIGHBOR AGREEMENTS | G108: Replaced
B109: Good Neighbor Agreement | G109: FS-1500-36
B110: Master Good Neighbor Agreement | G110: FS-1500-36A
B111: Supplemental Good Neighbor Agreement | G111: FS-1500-36B
B112: Good Neighbor Agreement (Road Work and Other Activities) | G112: FS-1500-37
E113: SUB TOTAL: | H113: =40*0.5 -> 20 | I113: 1 | J113: =H113*I113 -> 20 | K113: 4.45 | L113: =J113*K113 -> 89
E115: TOTAL: | H115: =SUM(H65:H113) -> 2894 | J115: =SUM(J65:J113) -> 2894 | L115: =SUM(L65:L113) -> 10887
E119: Reports | I119: Recordkeeping | K119: Cost
E120: % | F120: No. Resp | G120: AveResp | H120: Burden | I120: AveTime | J120: Burden | K120: AveCost* | L120: Burden | M120: Cost to Partner
A121: TOTAL: Estimated PRIVATE burden | E121: =1-E122-E123 -> 0.58 | F121: =E121*F124 -> 15038.3096 | G121: 8.68 | H121: =G121*F121 -> 130532.5273 | I121: 1 | J121: =I121*F121 -> 15038.3096 | K121: 40.53 | L121: =J121+H121 -> 145570.8369 | M121: =L121*K121 -> 5899986.021
A122: TOTAL: Estimated GOVERNMENT Burden | E122: 0.41 | F122: =E122*F124 -> 10630.5292 | G122: 8.68 | H122: =G122*F122 -> 92272.99346 | I122: 1 | J122: =I122*F122 -> 10630.5292 | K122: 40.53 | L122: =J122+H122 -> 102903.5227 | M122: =L122*K122 -> 4170679.773
A123: TOTAL: Estimated INDIVIDUAL Burden | E123: 0.01 | F123: =E123*F124 -> 259.2812 | G123: 8.68 | H123: 2250.560816 | I123: 1 | J123: =I123*F123 -> 259.2812 | K123: 40.53 | L123: 2509.842016 | M123: 101723.8969
E124: =E121+E122+E123 -> 1 | F124: =H115+H62+H27 -> 25928.12 | G124: =H124/F124 -> 8.68 | H124: =SUM(H121:H123) -> 225056.0816 | J124: =SUM(J121:J123) -> 25928.12 | L124: =SUM(L121:L123) -> 250984.2016 | M124: =M121+M122+M123 -> 10172389.69
